bitfinex-derivatives/quotes_BTCF0:USTF0_20251204
["timestamp","ask_amount","ask_price","bid_price","bid_amount"]
[1764870903873,0.26875,92461.0,92460.0,0.0108123]
[1764870904061,0.26875,92461.0,92460.0,0.26538]
[1764870904562,0.3608,92469.0,92455.0,0.48818]
[1764870904563,0.26875,92456.0,92455.0,0.48818]
[1764870905165,0.26875,92446.0,92445.0,0.62618]
[1764870905372,0.27575,92446.0,92445.0,0.62618]
[1764870905966,0.26875,92446.0,92445.0,0.62618]
[1764870906171,0.26875,92446.0,92445.0,0.6369942]
[1764870906370,0.26875,92446.0,92445.0,0.3608]
[1764870906567,0.26875,92446.0,92445.0,0.48818]
[1764870906773,0.26875,92446.0,92445.0,0.62618]
[1764870907166,0.007,92456.0,92455.0,0.26538]
[1764870907370,0.26875,92456.0,92455.0,0.62618]
[1764870907874,0.13146,92456.0,92455.0,0.62618]
[1764870908379,0.002,92456.0,92455.0,0.62618]
[1764870908669,0.004,92456.0,92455.0,0.62618]
[1764870909078,0.13546,92456.0,92455.0,0.62618]
[1764870909275,0.004,92456.0,92455.0,0.62618]
[1764870909470,0.27275,92456.0,92455.0,0.62618]
[1764870909675,0.27275,92456.0,92455.0,0.3608]
[1764870910472,0.27275,92456.0,92455.0,0.48818]
[1764870910975,0.27275,92456.0,92455.0,0.62618]
[1764870911172,0.27275,92456.0,92455.0,0.3608]
[1764870911373,0.279564,92446.0,92445.0,0.48818]
[1764870911576,0.26875,92446.0,92445.0,0.4989942]
[1764870912574,0.26875,92446.0,92445.0,0.3608]
[1764870913562,0.26975,92446.0,92445.0,0.3608]
[1764870914373,0.26975,92446.0,92445.0,0.48818]
[1764870914780,0.26975,92446.0,92445.0,0.3608]
[1764870914974,0.26875,92438.0,92437.0,0.2761951]
[1764870915481,0.26875,92438.0,92437.0,0.26538]
[1764870916077,0.26875,92438.0,92437.0,0.12738]
[1764870916280,0.2795651,92437.0,92433.0,0.3608]
[1764870916487,0.2795651,92437.0,92425.0,0.3716165]
[1764870916679,0.2795651,92437.0,92436.0,0.00258231]
[1764870916868,0.2795651,92437.0,92436.0,0.00016229]
[1764870917274,0.2795651,92437.0,92436.0,0.12996231]
[1764870917582,0.2795651,92437.0,92436.0,0.13196231]
[1764870917980,0.2805651,92437.0,92436.0,0.00216229]
[1764870918769,0.26875,92426.0,92425.0,0.3608]
[1764870919074,0.26875,92421.0,92420.0,0.2761971]
[1764870919272,0.26875,92421.0,92410.0,0.07898]
[1764870919273,0.0411,92421.0,92410.0,0.07898]
[1764870919472,0.26875,92421.0,92420.0,0.26780002]
[1764870920783,0.26875,92421.0,92420.0,0.27380002]
[1764870920982,0.35094,92421.0,92420.0,0.006]
[1764870922579,0.26875,92421.0,92420.0,0.26938]
[1764870924583,0.35094,92421.0,92420.0,0.004]
[1764870926679,0.26875,92417.0,92416.0,0.3608]
[1764870926888,0.2795674,92417.0,92416.0,0.3608]
[1764870929290,0.279568,92412.0,92411.0,0.00016229]
[1764870929489,0.279568,92412.0,92411.0,0.12996231]
[1764870929889,0.279568,92412.0,92411.0,0.15856443]
[1764870930286,0.26875,92412.0,92411.0,0.29656443]
[1764870930878,0.26875,92412.0,92411.0,0.30056443]
[1764870931392,0.26875,92412.0,92411.0,0.03276441]
[1764870932982,0.26875,92412.0,92411.0,0.29814441]
[1764870938087,0.26875,92412.0,92411.0,0.26954229]
[1764870940690,0.00016195,92430.0,92429.0,0.278316]
[1764870940899,0.00016195,92430.0,92429.0,0.639116]
[1764870941198,0.26035195,92430.0,92429.0,0.6283]
[1764870941783,0.26135195,92430.0,92429.0,0.6283]
[1764870941984,0.26135195,92430.0,92429.0,0.65688565]
[1764870942391,0.00116195,92430.0,92429.0,0.65788565]
[1764870942591,0.00016195,92430.0,92429.0,0.65788565]
[1764870943498,0.25045195,92430.0,92429.0,0.65788565]
[1764870944188,0.12354195,92430.0,92429.0,0.65788565]
[1764870944385,0.00016195,92430.0,92429.0,0.65788565]
[1764870945389,0.12338,92441.0,92440.0,0.3059347]
[1764870945589,0.12338,92441.0,92440.0,0.6667347]
[1764870945794,0.12338,92447.0,92446.0,0.255864]
[1764870945994,0.25029,92447.0,92446.0,0.24505]
[1764870947092,0.25429,92447.0,92446.0,0.24505]
[1764870947496,0.25029,92447.0,92446.0,0.24505]
[1764870947800,0.25129,92447.0,92446.0,0.24505]
[1764870948198,0.25129,92447.0,92446.0,0.27363252]
[1764870948398,0.25229,92447.0,92446.0,0.24505]
[1764870949811,0.25029,92441.0,92440.0,0.60585]
[1764870949992,0.25029,92441.0,92440.0,0.63442085]
[1764870950198,0.25029,92441.0,92440.0,0.70820085]
[1764870951003,0.26136971,92486.0,92485.0,0.24505]
[1764870951203,0.25056031,92486.0,92485.0,0.24505]
[1764870951509,0.12365031,92486.0,92485.0,0.24505]
[1764870951696,0.00027031,92486.0,92485.0,0.24505]
[1764870952097,0.25256031,92486.0,92485.0,0.24505]
[1764870952292,0.25256031,92486.0,92480.0,0.07378]
[1764870952293,0.0108095,92485.0,92480.0,0.12615]
[1764870952497,0.00227031,92486.0,92480.0,0.24505]
[1764870952498,0.25029,92481.0,92480.0,0.24505]
[1764870953194,0.25029,92481.0,92480.0,0.12615]
[1764870953404,0.3608,92485.0,92476.0,0.00016219]
[1764870953405,0.25029,92477.0,92476.0,0.00016219]
[1764870953705,0.25029,92477.0,92476.0,0.00258221]
[1764870953905,0.25029,92477.0,92476.0,0.00016219]
[1764870954101,0.25029,92477.0,92476.0,0.00258221]
[1764870954404,0.25029,92477.0,92476.0,0.24763221]
[1764870954604,0.25029,92477.0,92476.0,0.00016219]
[1764870954605,0.61109,92477.0,92476.0,0.00016219]
[1764870955003,0.25029,92458.0,92457.0,0.24505]
[1764870955599,0.25029,92458.0,92457.0,0.25582257]
[1764870956509,0.25029,92458.0,92457.0,0.25782257]
[1764870957208,0.25029,92458.0,92457.0,0.002]
[1764870958112,0.25029,92451.0,92450.0,0.60585]
[1764870958409,0.2611035,92451.0,92450.0,0.60585]
[1764870958602,0.25029,92451.0,92450.0,0.60585]
[1764870958808,0.25029,92456.0,92455.0,0.24505]
[1764870959807,0.00016184,92467.0,92455.0,0.24505]
[1764870960005,0.2611017,92466.0,92465.0,0.24505]
[1764870960311,0.25029,92466.0,92465.0,0.24505]
[1764870960512,0.12338,92466.0,92465.0,0.24505]
[1764870961006,0.12338,92466.0,92463.0,0.3608]
[1764870961007,0.00016184,92467.0,92466.0,0.2558617]
[1764870961200,0.00016184,92467.0,92466.0,0.25828172]
[1764870962109,0.25056031,92486.0,92485.0,0.24505]
[1764870962308,0.25056031,92486.0,92485.0,0.60585]
[1764870962309,0.00027031,92486.0,92485.0,0.60585]
[1764870962798,0.25029,92478.0,92477.0,0.4977604]
[1764870963001,0.25029,92478.0,92477.0,0.6166604]
[1764870963309,0.00027031,92486.0,92485.0,0.2558595]
[1764870963503,0.00027031,92486.0,92485.0,0.61907952]
[1764870964212,0.00127031,92486.0,92485.0,0.61907952]
[1764870964606,0.00127031,92486.0,92485.0,0.56907952]
[1764870964818,0.00127031,92486.0,92485.0,0.57988902]
[1764870965713,0.00227031,92486.0,92485.0,0.57988902]
[1764870966013,0.24113031,92486.0,92485.0,0.56907952]
[1764870968317,0.24113031,92486.0,92485.0,0.4477595]
[1764870968809,0.24113031,92486.0,92485.0,0.3608]
[1764870969114,0.24113031,92486.0,92474.0,0.11848]
[1764870969115,0.2496706,92475.0,92474.0,0.11848]
[1764870969309,0.23886,92469.0,92468.0,0.59968219]
[1764870969515,0.23886,92469.0,92468.0,0.36096219]
[1764870970409,0.23886,92469.0,92468.0,0.23888219]
[1764870971002,0.23886,92469.0,92468.0,0.24969369]
[1764870971411,0.11978,92469.0,92468.0,0.24969369]
[1764870971709,0.11978,92469.0,92468.0,0.25069369]
[1764870972710,0.0108108,92475.0,92474.0,0.11848]
[1764870972911,0.2496708,92475.0,92474.0,0.24114002]
[1764870975611,0.23886,92475.0,92474.0,0.24114002]
[1764870975811,0.5166496,92485.0,92474.0,0.00242002]
[1764870976008,0.7555096,92485.0,92484.0,0.23872]
[1764870976205,0.7447,92485.0,92484.0,0.23872]
[1764870976406,0.23886,92485.0,92484.0,0.23872]
[1764870976717,0.00027031,92486.0,92485.0,0.2495295]
[1764870976903,0.00027031,92486.0,92485.0,0.25194952]
[1764870977221,0.23913031,92486.0,92485.0,0.13170952]
[1764870977517,0.23913031,92486.0,92485.0,0.12090002]
[1764870977909,0.24113031,92486.0,92485.0,0.12090002]
[1764870978310,0.23886,92479.0,92478.0,0.3608]
[1764870978512,0.23886,92469.0,92461.0,0.0289333]
[1764870978715,0.23886,92469.0,92459.0,0.3608]
[1764870978716,0.23886,92469.0,92468.0,0.12106221]
[1764870978913,0.23886,92469.0,92468.0,0.14964582]
[1764870979205,0.23886,92469.0,92468.0,0.12106221]
[1764870979416,0.23886,92469.0,92468.0,0.02875427]
[1764870979609,0.23886,92469.0,92468.0,0.00016219]
[1764870980313,0.2496728,92457.0,92455.0,0.0289333]
[1764870980516,0.2496728,92457.0,92456.0,0.03102408]
[1764870981010,0.2496728,92457.0,92456.0,0.02860406]
[1764870981209,0.2496735,92451.0,92450.0,0.3608]
[1764870981411,0.48058,92451.0,92450.0,0.23872]
[1764870981615,0.2496735,92451.0,92450.0,0.23872]
[1764870981920,0.23886,92451.0,92450.0,0.23872]
[1764870982404,0.23886,92451.0,92445.0,0.3608]
[1764870982405,0.0108127,92458.0,92454.0,0.23872]
[1764870982606,0.1305927,92458.0,92457.0,0.24114002]
[1764870982806,0.00016219,92460.0,92459.0,0.23872]
[1764870983007,0.00016219,92460.0,92459.0,0.26973033]
[1764870983319,0.23902219,92460.0,92459.0,0.26973033]
[1764870983615,0.23886,92454.0,92450.0,0.0339333]
[1764870983823,0.23886,92451.0,92450.0,0.24372]
[1764870984024,0.23886,92451.0,92450.0,0.26731719]
[1764870984613,0.23886,92451.0,92450.0,0.27129094]
[1764870984918,0.23886,92451.0,92450.0,0.03257094]
[1764870985120,0.23886,92451.0,92450.0,0.004]
[1764870985319,0.23886,92451.0,92450.0,0.24272]
[1764870985514,0.23886,92451.0,92450.0,0.004]
[1764870985926,0.23886,92451.0,92450.0,0.005]
[1764870986619,0.23886,92451.0,92450.0,0.004]
[1764870987018,0.23886,92442.0,92441.0,0.00016219]
[1764870987209,0.23886,92442.0,92441.0,0.00258221]
[1764870987416,0.2496745,92442.0,92441.0,0.00258221]
[1764870987623,0.2496745,92442.0,92441.0,0.00016219]
[1764870988314,0.2496745,92442.0,92441.0,0.00216219]
[1764870988511,0.2496745,92442.0,92436.0,0.3608]
[1764870988821,0.2496745,92442.0,92406.0,0.00027055]
[1764870988822,0.23886,92414.0,92413.0,0.59952]
[1764870989124,0.11978,92414.0,92413.0,0.59952]
[1764870990925,0.11978,92414.0,92413.0,0.60052]
[1764870991129,0.11978,92414.0,92413.0,0.60152]
[1764870992519,0.23886,92422.0,92421.0,0.23872]
[1764870992712,0.23886,92422.0,92421.0,0.59952]
[1764870992917,0.00016228,92423.0,92422.0,0.2495368]
[1764870993128,0.00016228,92423.0,92422.0,0.25195682]
[1764870994017,0.00216228,92423.0,92422.0,0.25195682]
[1764870994921,0.00016228,92423.0,92422.0,0.25195682]
[1764870995228,0.00016228,92423.0,92422.0,0.25395682]
[1764870995822,0.0108152,92437.0,92436.0,0.2300351]
[1764870996221,0.0108152,92437.0,92435.0,0.3608]
[1764870996222,0.0108144,92444.0,92443.0,0.21922]
[1764870997119,0.1224644,92444.0,92443.0,0.21922]
[1764870997424,0.010814,92447.0,92446.0,0.21922]
[1764870997619,0.2321636,92450.0,92449.0,0.21922]
[1764870998018,0.22135,92445.0,92444.0,0.5908343]
[1764870998223,0.0108139,92448.0,92444.0,0.5908343]
[1764870998224,0.0108139,92448.0,92447.0,0.21922]
[1764870998527,0.00016228,92453.0,92452.0,0.2300333]
[1764870998824,0.00016228,92453.0,92452.0,0.59325332]
[1764870999028,0.23232548,92453.0,92452.0,0.22164002]
[1764870999327,0.22235,92444.0,92443.0,0.5908344]
[1764870999623,0.22235,92444.0,92443.0,0.61924082]
[1764871000523,0.001,92444.0,92443.0,0.61924082]
[1764871001115,0.00016228,92453.0,92452.0,0.2300333]
[1764871001319,0.00016228,92453.0,92452.0,0.62167317]
[1764871001621,0.00016228,92453.0,92452.0,0.58244002]
[1764871002338,0.00016228,92453.0,92452.0,0.61086748]
[1764871002722,0.00116228,92453.0,92452.0,0.61086748]
[1764871003224,0.21846228,92453.0,92452.0,0.25006748]
[1764871003427,0.21846228,92453.0,92452.0,0.22164002]
[1764871004129,0.21846228,92453.0,92452.0,0.22264002]
[1764871004431,0.21746228,92453.0,92452.0,0.22264002]
[1764871004627,0.00016228,92453.0,92452.0,0.22264002]
[1764871004928,0.00016228,92453.0,92452.0,0.2510753]
[1764871005523,0.00116228,92453.0,92452.0,0.2500753]
[1764871006032,0.21447,92453.0,92452.0,0.0308553]
[1764871006227,0.57527,92453.0,92452.0,0.02843528]
[1764871006422,0.57527,92453.0,92452.0,0.02943528]
[1764871006618,0.57527,92453.0,92452.0,0.001]
[1764871007033,0.2252853,92435.0,92434.0,0.21312228]
[1764871007237,0.2252853,92435.0,92434.0,0.24401506]
[1764871008220,0.50596,92449.0,92434.0,0.03107259]
[1764871008426,0.72043,92449.0,92448.0,0.21296]
[1764871008626,0.10565,92443.0,92442.0,0.2237745]
[1764871008825,0.21447,92443.0,92442.0,0.21296]
[1764871009128,0.2252845,92442.0,92441.0,0.3608]
[1764871009839,0.2252845,92442.0,92435.0,0.0108152]
[1764871009840,0.10882,92438.0,92437.0,0.21296]
[1764871010024,0.21447,92438.0,92437.0,0.24145428]
[1764871010531,0.21447,92435.0,92434.0,0.10887228]
[1764871010828,0.21447,92435.0,92434.0,0.13978672]
[1764871011032,0.21447,92435.0,92434.0,0.24403672]
[1764871014223,0.21447,92435.0,92434.0,0.24503672]
[1764871015332,0.21447,92435.0,92434.0,0.00116228]
[1764871016834,0.72043,92435.0,92434.0,0.00116228]
[1764871017430,0.42327,92444.0,92443.0,0.21296]
[1764871017431,0.4804343,92444.0,92443.0,0.21296]
[1764871017631,0.4804343,92444.0,92443.0,0.21538002]
[1764871018233,0.5860843,92444.0,92443.0,0.21296]
[1764871018433,0.57527,92444.0,92434.0,0.00116228]
[1764871018631,0.10882,92435.0,92434.0,0.21312228]
[1764871018836,0.21447,92435.0,92434.0,0.24161737]
[1764871019027,0.2252853,92435.0,92434.0,0.24161737]
[1764871019226,0.21447,92435.0,92434.0,0.24161737]
[1764871019729,0.0108147,92441.0,92434.0,0.24161737]
[1764871019730,0.2252847,92441.0,92440.0,0.21296]
[1764871019936,0.2252847,92441.0,92440.0,0.21538002]
[1764871021229,0.2252847,92441.0,92434.0,0.10887228]
[1764871021230,0.2252853,92435.0,92434.0,0.10887228]
[1764871021539,1.0920453,92435.0,92434.0,0.0286863]
[1764871021731,1.0920453,92435.0,92434.0,0.00016228]
[1764871023236,1.0920453,92435.0,92434.0,0.00216228]
[1764871023532,0.7312453,92435.0,92434.0,0.00216228]
[1764871023833,0.7312453,92435.0,92434.0,0.20499228]
[1764871024033,0.2262853,92435.0,92434.0,0.20499228]
[1764871024239,0.7322853,92435.0,92434.0,0.20499228]
[1764871024533,0.7312853,92435.0,92434.0,0.20499228]
[1764871024735,0.72147,92435.0,92434.0,0.23252989]
[1764871025037,0.001,92435.0,92434.0,0.23252989]
[1764871026136,0.506,92440.0,92439.0,0.19606]
[1764871026335,0.506,92440.0,92439.0,0.22459761]
[1764871026836,0.506,92440.0,92439.0,0.23541251]
[1764871027137,0.3608,92455.0,92454.0,0.19606]
[1764871027138,0.55756,92455.0,92454.0,0.19606]
[1764871027436,0.10167,92455.0,92454.0,0.22458345]
[1764871028138,0.10167,92455.0,92454.0,0.19606]
[1764871029347,0.8668,92464.0,92458.0,0.19606]
[1764871029348,0.1124826,92459.0,92458.0,0.19606]
[1764871029641,0.0108122,92462.0,92457.0,0.0108127]
[1764871029836,0.70276,92464.0,92463.0,0.19606]
[1764871030034,0.70276,92464.0,92463.0,0.20929212]
[1764871030035,0.506,92464.0,92463.0,0.20929212]
[1764871030345,0.506,92464.0,92463.0,0.19848002]
[1764871031242,0.506,92464.0,92463.0,0.20929212]
[1764871031536,0.506,92464.0,92463.0,0.19848002]
[1764871031740,0.70276,92464.0,92457.0,0.3608]
[1764871031937,0.207573,92455.0,92454.0,0.10210228]
[1764871032131,0.207573,92455.0,92454.0,0.00116228]
[1764871032538,0.19676,92455.0,92454.0,0.20703538]
[1764871032837,0.0108128,92457.0,92456.0,0.19606]
[1764871033038,0.1124828,92457.0,92456.0,0.19606]
[1764871033536,0.0108128,92457.0,92456.0,0.19606]
[1764871035041,1.06356,92464.0,92463.0,0.19606]
[1764871035946,1.0743719,92464.0,92463.0,0.19606]
[1764871036249,0.506,92464.0,92463.0,0.19606]
[1764871036545,0.507,92464.0,92463.0,0.19606]
[1764871037544,0.506,92464.0,92463.0,0.19706]
[1764871038539,0.70276,92464.0,92463.0,0.19706]
[1764871038738,0.60767,92464.0,92463.0,0.19706]
[1764871039250,0.506,92464.0,92463.0,0.19706]
[1764871040649,0.70276,92464.0,92463.0,0.19706]
[1764871041742,0.60767,92464.0,92463.0,0.19706]
[1764871041945,0.506,92464.0,92463.0,0.19706]
[1764871042136,0.3608,92485.0,92463.0,0.19706]
[1764871042137,0.00027031,92486.0,92485.0,0.0108095]
[1764871042337,0.10194031,92486.0,92485.0,0.2068695]
[1764871043651,0.10594031,92486.0,92485.0,0.2068695]
[1764871043847,0.00527031,92486.0,92485.0,0.2068695]
[1764871044655,0.00427031,92486.0,92485.0,0.2068695]
[1764871044839,0.0108075,92503.0,92500.0,0.06129]
[1764871045043,0.112477,92507.0,92506.0,0.19848002]
[1764871045854,0.010807,92507.0,92506.0,0.19848002]
[1764871046251,0.46247,92516.0,92515.0,0.19606]
[1764871046447,0.55756,92516.0,92515.0,0.19848002]
[1764871047851,0.4732759,92516.0,92515.0,0.19848002]
[1764871048051,0.10167,92516.0,92515.0,0.19848002]
[1764871048356,0.10860856,92517.0,92516.0,0.19606]
[1764871048545,0.10860856,92517.0,92516.0,0.19848002]
[1764871049147,0.00693856,92517.0,92516.0,0.19848002]
[1764871049348,0.10860856,92517.0,92516.0,0.19848002]
[1764871049649,0.10860856,92517.0,92516.0,0.20048002]
[1764871050549,0.00693856,92517.0,92516.0,0.20048002]
[1764871051246,0.20369856,92517.0,92516.0,0.002]
[1764871051451,0.19676,92506.0,92505.0,0.55686]
[1764871051849,0.19676,92506.0,92505.0,0.19606]
[1764871052646,0.2075661,92515.0,92514.0,0.19606]
[1764871052850,0.19676,92515.0,92514.0,0.19606]
[1764871054149,0.19313856,92517.0,92516.0,0.18759]
[1764871054350,0.19313856,92517.0,92516.0,0.19001002]
[1764871056158,0.19313856,92517.0,92516.0,0.19201002]
[1764871057354,0.0002702,92526.0,92525.0,0.18759]
[1764871057553,0.0945102,92526.0,92525.0,0.55081002]
[1764871057747,0.1864702,92526.0,92525.0,0.55081002]
[1764871058148,0.1864702,92526.0,92525.0,0.3608]
[1764871058448,0.1970057,92517.0,92516.0,0.00216219]
[1764871058648,0.5578057,92517.0,92516.0,0.00016219]
[1764871058954,0.1862,92517.0,92516.0,0.19017221]
[1764871059356,0.547,92517.0,92516.0,0.19017221]
[1764871059957,0.547,92517.0,92516.0,0.19117221]
[1764871060649,0.547,92517.0,92516.0,0.00116219]
[1764871061050,1.05252,92517.0,92516.0,0.00116219]
[1764871061250,1.05252,92517.0,92516.0,0.00016219]
[1764871061551,1.05252,92517.0,92516.0,0.00116219]
[1764871062055,0.1970075,92502.0,92501.0,0.10084]
[1764871062260,0.1862,92492.0,92491.0,0.54839]
[1764871063460,0.1862,92492.0,92491.0,0.54939]
[1764871063851,0.09424,92492.0,92491.0,0.54939]
[1764871064053,0.09424,92492.0,92491.0,0.54839]
[1764871064462,0.1772379,92499.0,92498.0,0.17987]
[1764871064659,0.1772379,92499.0,92498.0,0.18229002]
[1764871065658,0.1772379,92499.0,92498.0,0.18329002]
[1764871066564,0.1772379,92499.0,92498.0,0.001]
[1764871066760,0.1772379,92499.0,92498.0,0.00342002]
[1764871066963,0.1772379,92499.0,92498.0,0.001]
[1764871067660,0.1772379,92499.0,92498.0,0.00342002]
[1764871068068,0.1772379,92499.0,92498.0,0.001]
[1764871068972,0.1772379,92499.0,92498.0,0.18329002]
[1764871069661,0.1772379,92499.0,92498.0,0.001]
[1764871070562,0.16643,92483.0,92482.0,0.18003219]
[1764871070752,0.16643,92483.0,92482.0,0.21103604]
[1764871071670,0.16643,92483.0,92482.0,0.21203604]
[1764871071966,0.16643,92483.0,92482.0,0.21603604]
[1764871073860,0.0108095,92485.0,92484.0,0.2303]
[1764871074058,0.0108095,92485.0,92484.0,0.26130385]
[1764871074361,0.0935195,92485.0,92484.0,0.26130385]
[1764871074555,0.1772395,92485.0,92484.0,0.26130385]
[1764871074956,0.16643,92485.0,92484.0,0.26530385]
[1764871076568,0.1772393,92487.0,92486.0,0.17987]
[1764871076767,0.1772393,92487.0,92486.0,0.20845383]
[1764871077966,0.1772393,92487.0,92486.0,0.21245383]
[1764871078261,0.1772393,92487.0,92486.0,0.18387]
[1764871079871,0.1772393,92487.0,92486.0,0.09485]
[1764871080075,0.1772393,92487.0,92486.0,0.004]
[1764871080464,0.1772406,92475.0,92470.0,0.3608]
[1764871081168,0.5380406,92475.0,92461.0,0.3608]
[1764871081359,0.1772422,92462.0,92461.0,0.3608]
[1764871081972,0.50552,92465.0,92452.0,0.01097549]
[1764871081973,0.08271,92453.0,92452.0,0.01097549]
[1764871082174,0.08271,92453.0,92452.0,0.2194732]
[1764871082375,0.08271,92453.0,92452.0,0.19084549]
[1764871082376,0.08279111,92453.0,92452.0,0.19084549]
[1764871082672,8.111e-05,92453.0,92452.0,0.19084549]
[1764871082867,8.111e-05,92453.0,92452.0,0.2194596]
[1764871083069,8.111e-05,92453.0,92452.0,0.23023212]
[1764871083580,0.0108115,92468.0,92467.0,0.17987]
[1764871084368,0.08287219,92471.0,92470.0,0.16874]
[1764871084568,0.00016219,92471.0,92470.0,0.53196002]
[1764871084970,0.08739219,92471.0,92470.0,0.53196002]
[1764871085972,0.3608,92485.0,92470.0,0.53196002]
[1764871086176,0.67369,92495.0,92494.0,0.16805]
[1764871086660,0.6844983,92495.0,92494.0,0.16805]
[1764871087072,0.6844983,92495.0,92494.0,0.09016]
[1764871087377,0.6864983,92495.0,92494.0,0.09016]
[1764871087969,0.6854983,92495.0,92494.0,0.09016]
[1764871088774,0.16813,92487.0,92486.0,0.1788593]
[1764871088977,0.16813,92487.0,92486.0,0.16805]
[1764871089881,0.16813,92487.0,92486.0,0.16905]
[1764871090074,0.16813,92487.0,92486.0,0.17005]
[1764871090375,0.16813,92487.0,92486.0,0.19869665]
[1764871090768,0.16813,92487.0,92486.0,0.002]
[1764871091172,0.16813,92487.0,92486.0,0.17005]
[1764871092573,0.16913,92487.0,92486.0,0.16905]
[1764871093170,0.16913,92487.0,92486.0,0.16805]
[1764871093475,0.001,92487.0,92486.0,0.16805]
[1764871093869,0.08823,92487.0,92486.0,0.16805]
[1764871094266,0.16913,92487.0,92486.0,0.16805]
[1764871095572,0.1789394,92486.0,92485.0,0.00016219]
[1764871096877,0.1789394,92486.0,92475.0,0.04133]
[1764871096878,0.16813,92471.0,92470.0,0.4617712]
[1764871097079,0.16813,92471.0,92470.0,0.49044745]
[1764871097284,0.16813,92471.0,92470.0,0.55752625]
[1764871098585,0.16813,92471.0,92470.0,0.56152625]
[1764871099082,0.16813,92471.0,92470.0,0.55752625]
[1764871099284,0.16813,92471.0,92470.0,0.56052625]
[1764871099578,0.16813,92471.0,92470.0,0.03167625]
[1764871099887,0.16813,92471.0,92470.0,0.003]
[1764871103179,0.52893,92471.0,92470.0,0.003]
[1764871104782,0.52893,92471.0,92470.0,0.001]
[1764871104989,0.52993,92471.0,92470.0,0.001]
[1764871105189,1.03545,92471.0,92470.0,0.001]
[1764871105481,1.03545,92471.0,92461.0,0.00016219]
[1764871105482,0.1789422,92462.0,92461.0,0.00016219]
[1764871105872,0.1789422,92462.0,92461.0,0.00258221]
[1764871106075,0.1789422,92462.0,92461.0,0.00016219]
[1764871106676,0.1789422,92462.0,92461.0,0.00258221]
[1764871106983,0.1789422,92462.0,92461.0,0.00016219]
[1764871107584,0.1789422,92462.0,92461.0,0.00116219]
[1764871108286,0.1789422,92462.0,92461.0,0.02987753]
[1764871108677,0.1789422,92462.0,92461.0,0.03087753]
[1764871109985,0.1789422,92462.0,92461.0,0.00216219]
[1764871111073,0.1789422,92462.0,92461.0,0.16921219]
[1764871111881,0.1789422,92462.0,92461.0,0.16821219]
[1764871112289,0.1789422,92462.0,92461.0,0.00016219]
[1764871112487,0.1789422,92462.0,92461.0,0.00258221]
[1764871112682,0.1789422,92462.0,92461.0,0.00016219]
[1764871114394,0.1799422,92462.0,92461.0,0.00258221]
[1764871114691,0.1799422,92462.0,92461.0,0.00016219]
[1764871114896,0.1789422,92462.0,92461.0,0.00016219]
[1764871115090,0.1799422,92462.0,92461.0,0.00016219]
[1764871115288,0.1799422,92462.0,92461.0,0.00258221]
[1764871115495,0.1799422,92462.0,92461.0,0.07701219]
[1764871116087,0.14847,92447.0,92441.0,0.0384885]
[1764871116391,0.1592853,92435.0,92434.0,0.15187]
[1764871116589,0.14847,92435.0,92434.0,0.1626854]
[1764871116793,0.14847,92435.0,92434.0,0.15187]
[1764871117188,0.07855,92435.0,92434.0,0.15187]
[1764871117390,0.14847,92435.0,92434.0,0.15187]
[1764871117983,0.00016228,92444.0,92443.0,0.15187]
[1764871118188,0.00016228,92444.0,92443.0,0.51267]
[1764871118387,0.07871228,92444.0,92443.0,0.51267]
[1764871119093,0.00016228,92444.0,92443.0,0.51267]
[1764871119301,0.00016228,92444.0,92443.0,0.51367]
[1764871120702,0.14863228,92444.0,92443.0,0.51467]
[1764871121003,0.14863228,92444.0,92443.0,0.51267]
[1764871121304,0.14863228,92444.0,92443.0,0.15587]
[1764871121706,0.14863228,92444.0,92443.0,0.15287]
[1764871122003,0.14863228,92444.0,92443.0,0.15387]
[1764871122404,0.14863228,92444.0,92443.0,0.07785]
[1764871122706,0.13689,92432.0,92431.0,0.3608]
[1764871123006,0.13689,92432.0,92431.0,0.5005]
[1764871123202,0.06907,92432.0,92431.0,0.5005]
[1764871123403,0.13689,92441.0,92440.0,0.1397]
[1764871123595,0.13689,92441.0,92440.0,0.18049]
[1764871123796,0.00016228,92444.0,92443.0,0.1397]
[1764871123997,0.00016228,92444.0,92443.0,0.14212002]
[1764871124604,0.06923228,92444.0,92443.0,0.14212002]
[1764871125201,0.06923228,92444.0,92443.0,0.14312002]
[1764871125202,0.13705228,92444.0,92443.0,0.14312002]
[1764871126302,0.00016228,92444.0,92443.0,0.15393442]
[1764871128203,0.00016228,92444.0,92443.0,0.19142292]
[1764871128993,0.00016228,92444.0,92443.0,0.15293442]
[1764871129200,0.00016228,92444.0,92443.0,0.15393442]
[1764871130701,0.00016228,92444.0,92443.0,0.15493442]
[1764871131298,0.00016228,92444.0,92443.0,0.15393442]
[1764871131495,0.00016228,92444.0,92443.0,0.15493442]
[1764871131803,0.00016228,92444.0,92443.0,0.15393442]
[1764871132112,0.00016228,92444.0,92443.0,0.15693442]
[1764871135012,0.00016228,92444.0,92443.0,0.15693442]
[1764871135307,0.0108119,92465.0,92443.0,0.15693442]
[1764871135308,0.38851,92511.0,92472.0,0.04079]
[1764871135510,0.13689,92501.0,92500.0,0.1397]
[1764871135696,0.13689,92494.0,92493.0,0.1912985]
[1764871135900,0.13689,92494.0,92493.0,0.20216837]
[1764871136103,0.13689,92494.0,92493.0,0.22049681]
[1764871136408,0.06907,92494.0,92493.0,0.22049681]
[1764871136600,0.06907,92494.0,92493.0,0.23122042]
[1764871136908,0.06923219,92503.0,92502.0,0.1397]
[1764871137112,0.13705219,92503.0,92502.0,0.53211833]
[1764871137315,0.13705219,92503.0,92502.0,0.50292002]
[1764871138111,0.13905219,92503.0,92502.0,0.50292002]
[1764871139902,0.13905219,92503.0,92502.0,0.54371002]
[1764871141516,0.00216219,92503.0,92502.0,0.54371002]
[1764871141919,0.07123219,92503.0,92502.0,0.54371002]
[1764871142123,0.13905219,92503.0,92502.0,0.54371002]
[1764871142913,0.13905219,92503.0,92502.0,0.55451752]
[1764871144325,0.13905219,92503.0,92502.0,0.51372752]
[1764871146625,0.14985959,92503.0,92502.0,0.5005]
[1764871146925,0.14985959,92503.0,92502.0,0.3608]
[1764871148215,0.00216219,92503.0,92502.0,0.53073]
[1764871149831,0.07487219,92503.0,92502.0,0.53073]
[1764871150019,0.00216219,92503.0,92502.0,0.53073]
[1764871150626,0.67047,92522.0,92521.0,0.16993]